Cogmind - Beta 16 @@@ ROGUE MODE // 2025.12.04 @ 00:46:25 Player: AngelSpirit Result: Destroyed by Cetus Guard with Advanced KE Penetrator Performance ------------- Evolutions (5) 2500 Regions Visited (6) 1200 Robots Destroyed (49) 245 Value Destroyed (1727) 1727 Prototype IDs (6) 120 Alien Tech Used (0) 0 Bonus (1997) 1997 TOTAL SCORE: 7789 Bonus ------- Follower Combat Kills 966 Registered with UFD 300 Met Optimus in HQ 500 Built Enhanced Grunts 300 Friendly Fire -69 Cogmind --------- Core Integrity 0/1000 Matter 300/300 Energy 530/530 System Corruption 4% Temperature Cool (0) Movement Walking (120) Location -5/Cetus Parts ------- > --- POWER (2) -------- Neutrino Core Neutrino Core > --- PROPULSION (4) --- Carbon-fiber Leg (fused) Flexi-carbon Leg Myomer Leg Myomer Leg > --- UTILITY (9) ------ Improved Cooling System Improved Cooling System Medium Storage Unit Armor Integrity Analyzer Improved Medium Armor Plating Centrium Medium Armor Plating Hacking Suite Hacking Suite System Shield > --- WEAPON (2) ------- Advanced Plasma Cannon Advanced KE Penetrator > --- INVENTORY (10) --- Carbon-fiber Leg Myomer Leg Advanced Heat Sink Matter Compressor (250) Advanced Signal Interpreter Improved Medium Armor Plating Heavy Plasma Cannon Smartbomb Launcher DRS Beacon (Ready) Peak State ------------ > --- POWER ------------ Neutrino Core Neutrino Core > --- PROPULSION ------- Carbon-fiber Leg Flexi-carbon Leg Myomer Leg Myomer Leg > --- UTILITY ---------- Improved Cooling System Improved Cooling System Medium Storage Unit Armor Integrity Analyzer Improved Medium Armor Plating Centrium Medium Armor Plating Hacking Suite Hacking Suite System Shield > --- WEAPON ----------- Advanced Plasma Cannon Advanced KE Penetrator > --- INVENTORY -------- Carbon-fiber Leg Myomer Leg Advanced Heat Sink Matter Compressor Advanced Signal Interpreter Improved Medium Armor Plating Plasma Rifle Smartbomb Launcher DRS Beacon [Rating: 88] Favorites ----------- Power Neutrino Core Engine Ion Engine Power Core Neutrino Core Propulsion Myomer Leg Treads Improved Treads Leg Myomer Leg Wheel Armored Huge Wheel Hover Unit Cooled Aerolev Unit Flight Unit Field Propulsion Drive Utility Hacking Suite Device Advanced Terrain Scanner Storage Medium Storage Unit Processor Armor Integrity Analyzer Hackware Hacking Suite Protection Improved Medium Armor Plating Weapon Beam Cannon Energy Gun Wave Gun Energy Cannon Beam Cannon Ballistic Gun Assault Rifle Ballistic Cannon Flak Cannon Launcher Heavy Rocket Launcher Impact Weapon Makeshift Hammer Slashing Weapon Chainsword Build | -11 -10 -10 -7 -5 -5 -5 ------- Run | Yrd Mat Sub Scr Fac Ext Cet Slots Evolved 10 | . . . . 10 . . Power 1 | . . . . 1 . . Propulsion 2 | . . . . 2 . . Utility 7 | . . . . 7 . . Weapon . | . . . . . . . Parts Attached 98 | 6 11 4 8 36 31 2 Power 14 | 1 2 1 2 5 3 . Engine 8 | 1 2 1 2 2 . . Core 6 | . . . . 3 3 . Reactor . | . . . . . . . Propulsion 30 | 2 5 1 3 8 11 . Treads 4 | . . . . . 4 . Leg 12 | 2 3 . . . 7 . Wheel 4 | . 2 1 1 . . . Hover 1 | . . . . 1 . . Flight 9 | . . . 2 7 . . Utility 37 | 1 3 1 2 17 12 1 Device 16 | . . 1 2 8 5 . Storage 3 | 1 1 . . . 1 . Processor 4 | . 1 . . 3 . . Hackware 6 | . . . . 6 . . Protection 8 | . 1 . . . 6 1 Artifact . | . . . . . . . Weapon 17 | 2 1 1 1 6 5 1 Energy Gun 2 | 1 . . . . 1 . Energy Cannon 3 | . 1 . . . 2 . Ballistic Gun 7 | 1 . 1 . 2 2 1 Ballistic Cannon 1 | . . . 1 . . . Launcher 1 | . . . . 1 . . Special Weapon . | . . . . . . . Impact Weapon 1 | . . . . 1 . . Slashing Weapon 2 | . . . . 2 . . Piercing Weapon . | . . . . . . . Special Melee Weapon . | . . . . . . . Unidentified Prototypes 6 | . . . . 4 . 2 Parts Lost 21 | . . . . 15 6 . Power 4 | . . . . 4 . . Propulsion 8 | . . . . 6 2 . Utility 7 | . . . . 4 3 . Weapon 2 | . . . . 1 1 . Highest Loss Streak 8 | . . . . 8 4 . To Critical Strikes . | . . . . . . . Average Backups 6 | . 6 9 8 5 5 8 Power . | . 1 . . . . . Propulsion 1 | . 1 3 . . . 2 Utility 3 | . 2 3 4 2 2 4 Weapon 1 | . 1 2 2 1 1 2 Tool/Special . | . . . . . . . Unused Backups 26 | . 3 . 11 3 3 6 Power 2 | . . . 1 . 1 . Propulsion 5 | . 2 . 2 . . 1 Utility 9 | . 1 . 2 1 2 3 Weapon 9 | . . . 6 1 . 2 Tool/Special 1 | . . . . 1 . . Average Slot Usage (%) 83 | . 96 100 76 57 92 99 Engine 7 | . 14 14 14 2 . . Core 2 | . . . . 3 5 11 Leg 9 | . 25 . . . 14 23 Wheel 6 | . 2 28 13 1 . . Flight 2 | . . . 1 8 3 . Device 10 | . . 14 12 9 14 11 Storage 8 | . 14 14 14 2 2 5 Processor 4 | . 6 . . 7 6 5 Hackware 7 | . . . . 10 21 17 Protection 2 | . 4 . . . 4 10 Energy Gun 1 | . 6 . . . 3 . Energy Cannon 5 | . 7 14 7 . 3 6 Ballistic Gun 6 | . 14 14 7 . 1 4 Ballistic Cannon 1 | . . . 5 . . . Peak Build Rating 88 | 6 8 9 22 73 80 88 Average Rating 37 | 4 6 8 19 46 71 86 On Entrance 26 | . 6 8 9 16 66 80 Avg Prop Armor Cover (%) 7 | . . . . 7 . . Naked Turns . | . . . . . . . Heaviest Build 75 | 12 20 23 25 29 75 75 Greatest Support 98 | 20 20 26 28 28 98 85 Greatest Overweight (x) 7 | 2 . 1 . 7 1 . Average Overweight (x) . | . . . . . . . Largest Inventory Capacity 10 | 8 10 10 10 10 10 10 Average Capacity 8 | 7 8 10 10 7 7 10 Most Carried 10 | . 10 10 10 10 10 10 Average Carried 7 | . 6 9 9 6 7 9 Final Capacity 10 | 8 10 10 10 5 10 10 Final Carried 10 | . 10 10 10 5 10 10 Class Distribution -------------------- 62% | Mutant 24% | Scavenger-Mutant 9% | Hacker-Mutant 3% | Hacker-Sprinter Dominant Class ---------------- Mutant | -10/Materials Mutant | -10/Subcaves Mutant | -7/Scraptown Mutant | -5/Factory Scavenger-Mutant | -5/Extension Scavenger-Mutant | -5/Cetus Resources | -11 -10 -10 -7 -5 -5 -5 ----------- Run | Yrd Mat Sub Scr Fac Ext Cet Matter Collected 2006 | 235 465 82 80 375 740 29 Remotely . | . . . . . . . Salvage Created 2145 | . 763 79 . 242 1016 45 Parts 108 | . 43 6 . 16 42 1 Haulers Intercepted 1 | . 1 . . . . . Recyclers Shooed 2 | . 1 . . 1 . . Parts Field Recycled . | . . . . . . . Retrieved Matter . | . . . . . . . Parts Self-Destructed 4 | . . 4 . . . . Prevented . | . . . . . . . Parts Restored . | . . . . . . . Kills | -11 -10 -10 -7 -5 -5 -5 ------- Run | Yrd Mat Sub Scr Fac Ext Cet Combat Hostiles Destroyed 34 | . 14 2 . 6 11 1 Melee 5 | . . . . 1 4 . Guns 18 | . 14 2 . . 2 . Cannons 3 | . . . . . 2 1 AOE 3 | . . . . 3 . . Classes Destroyed 12 | . 7 1 . 2 2 . Worker 3 | . 3 . . . . . Hauler 1 | . 1 . . . . . Recycler 3 | . 2 . . . 1 . Operator 4 | . 1 . . 3 . . Watcher 4 | . 2 . . 1 1 . Swarmer 10 | . 6 . . 4 . . Grunt 10 | . 8 . . . 2 . Sentry 8 | . . . . 1 7 . Hunter 1 | . . . . . 1 . Programmer 1 | . . . . 1 . . Behemoth 1 | . . . . . 1 . Cetus Guard 1 | . . . . . . 1 Subdweller 2 | . . 2 . . . . Best Kill Streak 5 | . 5 1 . 3 2 1 Combat Bots Only 5 | . 5 1 . 3 2 1 Max Kills in Single Turn 2 | . 1 1 . 2 1 1 Gunslinging . | . . . . . . . Exploded 2 | . . . . 2 . . Melee 1 | . . . . 1 1 . Uniques/NPCs Destroyed . | . . . . . . . Combat | -11 -10 -10 -7 -5 -5 -5 -------- Run | Yrd Mat Sub Scr Fac Ext Cet Hostile Shots Fired 327 | . 63 12 . 164 79 9 Missed 118 | . 17 2 . 72 25 2 Hits 209 | . 46 10 . 92 54 7 Projectile 209 | . 46 10 . 92 54 7 AOE 1 | . . . . 1 . . Critical Strikes 15 | . 1 . . 6 7 1 Part Disruptions 1 | . . . . 1 . . Damage Taken 3916 | . 459 230 . 1953 1124 150 Core 1208 | . 109 97 . 670 291 41 Absorbed by Shields 273 | . . . . . 206 67 Redirected to Shielding 14 | . 14 . . . . . Core Remaining (%) 58 | 100 . . 17 . . . Volleys Fired 126 | . 55 12 . 3 49 7 Largest 2 | . 2 2 . 1 2 2 Hottest 188 | . 80 80 . 39 188 188 Shots Fired 245 | . 109 24 . 3 96 13 Gun 172 | . 94 12 . 1 65 . Cannon 71 | . 15 12 . . 31 13 Launcher 2 | . . . . 2 . . Special . | . . . . . . . Kinetic 92 | . 55 12 . 1 24 . Thermal 151 | . 54 12 . . 72 13 Explosive 2 | . . . . 2 . . Electromagnetic . | . . . . . . . Robot Hit Streak 11 | . 6 11 . 6 5 5 Robot Miss Streak 8 | . 4 1 . 1 8 2 Penetration Max 1 | . . . . . 1 . Secondary Targets 3 | . 3 . . . . . Max Gunslinging Chain 1 | . 1 . . . . . Shots Hit Robots 202 | . 68 20 . 33 73 8 Core Hits 80 | . 33 5 . 10 30 2 Critical Kills 3 | . 1 . . . 2 . Critical Parts Destroyed 3 | . . . . 2 1 . Critical Strikes 13 | . 3 . . 4 6 . Burn 3 | . 2 . . . 1 . Meltdown 2 | . . . . . 2 . Destroy 2 | . 1 . . . 1 . Smash 3 | . . . . 3 . . Sever 3 | . . . . 1 2 . Melee Attacks 94 | . . . . 73 21 . Impact 34 | . . . . 34 . . Slashing 60 | . . . . 39 21 . Piercing . | . . . . . . . Sneak Attacks 1 | . . . . . 1 . Combat Hostiles 1 | . . . . . 1 . Follow-up Attacks . | . . . . . . . Damage Inflicted 5751 | . 964 296 . 1784 2448 259 Guns 1993 | . 774 137 . 22 1060 . Cannons 1221 | . 190 159 . . 613 259 Explosions 377 | . . . . 377 . . Melee 2160 | . . . . 1385 775 . Ramming . | . . . . . . . Kinetic 976 | . 409 137 . 22 408 . Thermal 2238 | . 555 159 . . 1265 259 Explosive 377 | . . . . 377 . . Electromagnetic . | . . . . . . . Impact 860 | . . . . 860 . . Slashing 1300 | . . . . 525 775 . Piercing . | . . . . . . . Highest Corruption 9 | . 2 2 . 9 4 4 Average Corruption 3 | . 2 2 . 5 4 4 Corruption Purged 5 | . . . . 5 . . Corruption Blocked . | . . . . . . . Effects 69 | . 11 4 . 19 26 9 Message Errors 20 | . 4 1 . 5 6 4 Matter Fused 17 | . 2 1 . 6 7 1 Heat Flow Errors 6 | . 1 1 . 1 2 1 Energy Discharges 7 | . 2 . . 2 2 1 Parts Rejected 1 | . . . . 1 . . Parts Fused 1 | . . . . . . 1 Data Loss (minor) 11 | . 2 1 . 3 5 . Data Loss (major) 1 | . . . . . 1 . Misfires 1 | . . . . . 1 . Alerts 2 | . . . . 1 1 . Weapon Failures 2 | . . . . . 1 1 Overload Shots . | . . . . . . . Overflow Damage 400 | . 16 . . 382 2 . Projectiles 16 | . 16 . . . . . Explosions 7 | . . . . 7 . . Melee 377 | . . . . 375 2 . Knockbacks 4 | . . . . 4 . . Impact 4 | . . . . 4 . . Kinetic . | . . . . . . . Secondary . | . . . . . . . Self-Inflicted Damage . | . . . . . . . Shots . | . . . . . . . Rammed . | . . . . . . . Targets Rammed . | . . . . . . . Kicked . | . . . . . . . Crushed . | . . . . . . . Highest Temperature 238 | . 238 95 . 104 138 152 Average Temperature 42 | . 45 54 . 49 23 85 Received Heat Transfer 701 | . 171 24 . 156 350 . Siege Activations . | . . . . . . . Martial Activations . | . . . . . . . Shielding Activations . | . . . . . . . Robots Disrupted . | . . . . . . . Combat Hostiles . | . . . . . . . Robots Corrupted 2 | . . . . 2 . . Combat Hostiles 2 | . . . . 2 . . Parts Fried . | . . . . . . . Impact Corruptions 11 | . . . . 11 . . Robots Melted 3 | . . . . . 3 . Combat Hostiles 3 | . . . . . 3 . Parts Melted 6 | . 1 . . . 5 . Heat Transferred 4341 | . 1628 333 . . 1980 400 Parts Sabotaged . | . . . . . . . Parts Stolen . | . . . . . . . Parts Stripped . | . . . . . . . Power Chain Reactions . | . . . . . . . Alert | -11 -10 -10 -7 -5 -5 -5 ------- Run | Yrd Mat Sub Scr Fac Ext Cet Maximum Alert Level 2 | . 1 . . 2 1 1 Low Security (%) 69 | 100 70 . . 76 70 40 Level 1 30 | . 29 . . 23 29 59 Level 2 . | . . . . . . . Level 3 . | . . . . . . . Level 4 . | . . . . . . . Level 5 . | . . . . . . . High Security . | . . . . . . . Max Security . | . . . . . . . Peak Influence 401 | . 268 . . 401 336 290 Initial 191 | . . . . . 191 164 Average 134 | . 150 . . 112 120 214 Influence Increases 2283 | . 454 . . 775 861 193 Destroy 0b10 Robot/C 1040 | . 280 . . 180 500 80 Destroy 0b10 Robot/NC 90 | . 45 . . 20 20 5 Destroy Leader 180 | . 66 . . 42 72 . Allied During Kill 245 | . . . . 29 155 61 Successful Hack 86 | . 32 . . 16 31 7 Disable Machine 60 | . . . . 60 . . Destroy Structure 177 | . 1 . . 98 38 40 Partial Spotted 60 | . . . . 30 30 . Lose Combat Pursuer 345 | . 30 . . 300 15 . Influence Decreases 2136 | . 329 125 . 384 958 340 Entered New Map 391 | . . 61 . . 200 130 Time Decay 1187 | . 329 64 . 234 390 170 Lost Part 120 | . . . . 90 30 . Lost Ally 171 | . . . . 60 71 40 Purge Threat 267 | . . . . . 267 . Squads Dispatched 16 | . 4 . . 11 1 . Investigation 8 | . 3 . . 5 . . Extermination 3 | . . . . 3 . . Reinforcement 5 | . 1 . . 3 1 . Assault . | . . . . . . . Garrison . | . . . . . . . Intercept . | . . . . . . . Searches Triggered . | . . . . . . . Construction Impeded . | . . . . . . . Haulers Reinforced 1 | . . . . 1 . . Active Scanning Responses . | . . . . . . . Cargo Convoy Interrupts . | . . . . . . . Stealth | -11 -10 -10 -7 -5 -5 -5 --------- Run | Yrd Mat Sub Scr Fac Ext Cet Distress Signals 7 | . . . . 2 3 2 Communications Jammed . | . . . . . . . Distress Signals . | . . . . . . . Times Spotted 99 | . 20 5 . 40 28 6 Peak Tracking Total 7 | . 4 2 . 7 5 5 Tactical Retreats 12 | . 1 1 . 9 1 . Traps | -11 -10 -10 -7 -5 -5 -5 ------- Run | Yrd Mat Sub Scr Fac Ext Cet Traps Triggered 5 | . 2 . . 1 2 . Indirectly . | . . . . . . . Trap Hack Attempts . | . . . . . . . Triggered . | . . . . . . . Disarmed 1 | . . . . . 1 . Reprogrammed . | . . . . . . . Reused . | . . . . . . . Traps Extracted . | . . . . . . . Installed . | . . . . . . . Triggered . | . . . . . . . Machines | -11 -10 -10 -7 -5 -5 -5 ---------- Run | Yrd Mat Sub Scr Fac Ext Cet Machines Disabled 5 | . . . . 4 1 . Max in Single Turn 1 | . . . . . 1 . Garrison Access 1 | . . . . 1 . . Energy Cycler 1 | . . . . . 1 . Machines Repaired . | . . . . . . . Machines Dismantled . | . . . . . . . Machines Sabotaged . | . . . . . . . Overloaded Fab Kills . | . . . . . . . Hacking | -11 -10 -10 -7 -5 -5 -5 --------- Run | Yrd Mat Sub Scr Fac Ext Cet Machines Accessed 36 | . 8 1 3 15 6 3 Terminals 23 | . 7 . . 7 6 3 Fabricators 1 | . . . . 1 . . Repair Stations . | . . . . . . . Recycling Units 6 | . 1 . . 5 . . Scanalyzers 1 | . . . . 1 . . Garrison Access 1 | . . . . 1 . . Total Hacks 129 | . 20 5 14 45 33 12 Successful 73 | . 9 5 14 23 17 5 Failed 56 | . 11 . . 22 16 7 Catastrophic 10 | . 3 . . 5 1 1 Database Lockouts . | . . . . . . . Manual 41 | . 2 . . 22 16 1 Terminals 88 | . 19 . . 24 33 12 Fabricators 2 | . . . . 2 . . Repair Stations . | . . . . . . . Recycling Units 15 | . 1 . . 14 . . Scanalyzers 3 | . . . . 3 . . Garrison Access 2 | . . . . 2 . . Terminal Hacks 53 | . 8 5 14 6 15 5 Record 23 | . . 5 14 . . 4 Part Schematic 4 | . . . . . 4 . Robot Analysis 2 | . 1 . . . 1 . Open Door 5 | . . . . 1 3 1 Branch Access Points 2 | . 1 . . 1 . . Emergency Access Points 1 | . 1 . . . . . Unreport Threat 3 | . . . . . 3 . Locate Traps 6 | . 3 . . 2 1 . Disarm Traps 1 | . . . . . 1 . Recall Reinforcements 1 | . . . . . 1 . Hauler Manifests 1 | . 1 . . . . . Registered Components 2 | . 1 . . 1 . . Zone Layout 2 | . . . . 1 1 . Fabricator Hacks 2 | . . . . 2 . . Network Status 1 | . . . . 1 . . Build 1 | . . . . 1 . . Repair Station Hacks . | . . . . . . . Recycling Unit Hacks 4 | . 1 . . 3 . . Report Inventory 4 | . 1 . . 3 . . Scanalyzer 3 | . . . . 3 . . Retrieve Study 3 | . . . . 3 . . Garrison Access Hacks 1 | . . . . 1 . . Seal Access 1 | . . . . 1 . . Unauthorized Hacks 10 | . . . . 8 2 . Terminals 6 | . . . . 4 2 . Track 1 | . . . . 1 . . Botnet 4 | . . . . 2 2 . Operators 1 | . . . . 1 . . Fabricators . | . . . . . . . Repair Stations . | . . . . . . . Recycling Units 4 | . . . . 4 . . Fedlink 3 | . . . . 3 . . Scrapoids 1 | . . . . 1 . . Scanalyzers . | . . . . . . . Garrison Access . | . . . . . . . Data Cores Recovered 2 | . . . . 2 . . Used . | . . . . . . . Hacking Detections 23 | . 7 . . 11 3 2 Full Trace Events 3 | . 2 . . 1 . . Feedback Events . | . . . . . . . Feedback Blocked . | . . . . . . . Robot Schematics Acquired . | . . . . . . . Robots Built . | . . . . . . . Authchips . | . . . . . . . Time 169 | . . . . 169 . . Total Robot Build Rating . | . . . . . . . Part Schematics Acquired 4 | . . . . . 4 . Parts Built . | . . . . . . . Authchips . | . . . . . . . Time . | . . . . . . . Total Part Build Rating . | . . . . . . . Part Studies Acquired 3 | . . . . 3 . . Parts Repaired . | . . . . . . . Time . | . . . . . . . Parts Recycled . | . . . . . . . Recycled Matter . | . . . . . . . Retrieved Matter . | . . . . . . . Retrieved Components . | . . . . . . . Parts Scanalyzed . | . . . . . . . Part Schematics Acquired . | . . . . . . . Parts Damaged . | . . . . . . . Bothacking | -11 -10 -10 -7 -5 -5 -5 ------------ Run | Yrd Mat Sub Scr Fac Ext Cet Used RIF Installer . | . . . . . . . Robots Hacked . | . . . . . . . Non-combat . | . . . . . . . Combat . | . . . . . . . Robot Hacks Applied . | . . . . . . . Relay Couplers Released . | . . . . . . . Fabnet Peak Effective % . | . . . . . . . Robots Rewired 12 | . . . . . 12 . Allies Hacked . | . . . . . . . Hacks Repelled . | . . . . . . . Allies | -11 -10 -10 -7 -5 -5 -5 -------- Run | Yrd Mat Sub Scr Fac Ext Cet Total Allies 23 | . . . . 5 13 5 Largest Group 12 | . . . . 5 9 12 Highest-Rated Group 739 | . . . . 235 348 739 Highest-Rated Ally 159 | . . . . 47 159 136 Total Orders 1 | . . . . 1 . . EXPLORE 1 | . . . . 1 . . Ally Attacks 117 | . . . . 17 80 20 Total Damage 3944 | . . . . 613 2354 977 Kills 24 | . . . . 4 16 4 Allies Corrupted . | . . . . . . . Allies Melted . | . . . . . . . Intel | -11 -10 -10 -7 -5 -5 -5 ------- Run | Yrd Mat Sub Scr Fac Ext Cet Active Infowar (turns) 2526 | . . 363 1220 801 142 . Sensors 657 | . . 363 117 177 . . IFF 105 | . . . . 105 . . Terrain 1891 | . . . 1103 646 142 . Jamming 303 | . . . . 303 . . Robot Analysis Total 2 | . 1 . . . 1 . Derelict Logs Recovered 3 | . . 1 2 . . . Drone Launches 3 | . . . . 3 . . Drone Recoveries 3 | . . . . 3 . . Exploration | -11 -10 -10 -7 -5 -5 -5 ------------- Run | Yrd Mat Sub Scr Fac Ext Cet Turns Passed 5016 | 51 853 363 1322 1003 1066 358 Spaces Moved 4436 | 37 552 335 1260 1413 633 206 Core 10 | 8 . . . 2 . . Treads 69 | . . . . . 69 . Legs 1079 | 29 468 . . . 376 206 Wheels 1781 | . 84 335 1097 265 . . Hover 12 | . . . . 12 . . Flight 1485 | . . . 163 1134 188 . Fastest Speed 32 | 50 80 90 44 32 32 120 Average Speed 84 | 115 113 91 92 50 98 120 Slowest Speed 400 | 150 120 95 100 400 190 120 Overloaded Moves . | . . . . . . . Propulsion Burnouts . | . . . . . . . Robots Hopped 17 | . . . . 14 3 . Potential Cave-ins . | . . . . . . . Cave-ins Triggered . | . . . . . . . Exploration Rate (%) 56 | 4 92 21 87 39 74 76 Regions Visited 6 Branch Regions 4 Pre-discovered Areas 1 | . . . . 1 . . Known Exits Taken 2 | . 1 . . 1 . . Unknown Exits Taken 4 | 1 . 1 1 . 1 . Scrap Searched 7 | . . 1 6 . . . Spaces Dug 22 | . . . . 22 . . Terrain Destroyed 52 | . . . . 38 11 3 Melee 22 | . . . . 22 . . Projectile 14 | . . . . . 11 3 AOE 16 | . . . . 16 . . Terrain Rammed . | . . . . . . . Walls Destroyed . | . . . . . . . Machines Disabled . | . . . . . . . Actions | -11 -10 -10 -7 -5 -5 -5 --------- Run | Yrd Mat Sub Scr Fac Ext Cet Total 5333 | 42 669 365 1422 1582 950 303 Wait 404 | . 23 12 116 39 130 84 Move 4398 | 36 551 334 1259 1386 626 206 Hop 15 | . . . . 12 3 . Pick Up 47 | . 16 1 14 8 7 1 Fast Attach 73 | 6 3 1 5 28 28 2 Attach 15 | . 2 . 1 12 . . Detach 7 | . . . 1 6 . . Swap 18 | . 6 3 2 3 4 . Drop 77 | . 13 2 22 12 25 3 Fire 126 | . 55 12 . 3 49 7 Melee 94 | . . . . 73 21 . Ram . | . . . . . . . Kick . | . . . . . . . Crush . | . . . . . . . Escape Stasis 4 | . . . . . 4 . Rewire 55 | . . . 2 . 53 . Trap . | . . . . . . . Miscellaneous . | . . . . . . . Route ------- -11/Scrapyard -10/Materials (discovered 4 exits: [*Mat x2] / *Min / *Sub) -10/Subcaves (discovered 2 exits: [*Mat] / *Scr) -7/Scraptown (discovered 2 exits: *Fac x2) -5/Factory (discovered 4 exits: *Upp x2 / *Ext x2) -5/Extension (discovered 3 exits: [*Fac x2] / *Cet) -5/Cetus (discovered 1 exit: [*Arc]) History --------- Turn | Location | Event 20 | -11/Scrapyard | Discovered new exit (range 16) 52 | -11/Scrapyard | Entered Materials 210 | -10/Materials | Discovered new exit (range 16) 317 | -10/Materials | Build established: Mutant 467 | -10/Materials | Identified exit to Mines 708 | -10/Materials | Discovered new exit (range 16) 895 | -10/Materials | Discovered new exit (range 13) 904 | -10/Materials | Identified exit to Subcaves 905 | -10/Materials | Entered Subcaves 906 | -10/Subcaves | Approached by a straggling Scientist 910 | -10/Subcaves | Learned Materials interactive machine intel 922 | -10/Subcaves | Core integrity fell below 50% 1000 | -10/Subcaves | Core integrity fell below 20% 1164 | -10/Subcaves | Visited Clippyterm 1167 | -10/Subcaves | Learned Factory stockpile data 1167 | -10/Subcaves | Learned Research security intel 1213 | -10/Subcaves | Discovered new exit (range 9) 1268 | -10/Subcaves | Entered Scraptown 1268 | -7/Scraptown | System corruption cleaned by C-Scrubber 1445 | -7/Scraptown | Discovered new exit (range 11) 1490 | -7/Scraptown | Scanned Subdweller tech in exchange for log data 1493 | -7/Scraptown | Learned Research terminal intel 1494 | -7/Scraptown | Learned location of 2 exits from Upper Caves 1518 | -7/Scraptown | Visited SPCMW 1536 | -7/Scraptown | Visited CR-KLE's Repair Center 1542 | -7/Scraptown | Visited Awakened 1547 | -7/Scraptown | Heard Great Nut preacher, LISTEN AND RECITE! 1793 | -7/Scraptown | Visited Science Testing Area 1807 | -7/Scraptown | Visited Cyclists 1847 | -7/Scraptown | Visited Cave Peace 1867 | -7/Scraptown | Visited CPS Storage 1902 | -7/Scraptown | Visited UFD Registry 1902 | -7/Scraptown | Registered with UFD as "Thunderboard" 1928 | -7/Scraptown | Visited Junk Repository 1978 | -7/Scraptown | Visited Abandonware Association 2030 | -7/Scraptown | Delivered Scrap Shield to a Scientist 2118 | -7/Scraptown | Visited Scrapoid Pod Storage 2135 | -7/Scraptown | Visited Derelict Rescue Squad 2141 | -7/Scraptown | Found DRS Beacon 2229 | -7/Scraptown | Visited Scrap Suit Storage 2251 | -7/Scraptown | Visited Scrapoid Research Area 2406 | -7/Scraptown | Visited Supply Room 2440 | -7/Scraptown | Visited Curators Association 2457 | -7/Scraptown | Visited DA-N13 Charitable Foundation 2461 | -7/Scraptown | Found DCF Scrap (27 items) 2550 | -7/Scraptown | Met Optimus 2550 | -7/Scraptown | Accepted into 0bPrime 2588 | -7/Scraptown | Discovered new exit (range 3) 2590 | -7/Scraptown | Entered Factory 2590 | -5/Factory | Evolved 10 slots: Power x1, Propulsion x2, Utility x7 2666 | -5/Factory | Discovered new exit (range 11) 3035 | -5/Factory | Lost 8 parts (2p3n2u1w) 3113 | -5/Factory | Loaded intel: 8 recycling unit locations 3130 | -5/Factory | Core integrity fell below 50% 3248 | -5/Factory | Identified exit to Upper Caves 3248 | -5/Factory | Identified exit to Extension 3255 | -5/Factory | Learned location of Protoforge (-3) 3433 | -5/Factory | Scrapoids reinforcements arrived? 3447 | -5/Factory | Build established: Hacker-Mutant 3462 | -5/Factory | Lost 6 parts (2p3n1u) 3466 | -5/Factory | Lost 3 allies 3593 | -5/Factory | Entered Extension 3646 | -5/Extension | Rescued a captive Derelict 3733 | -5/Extension | Core integrity fell below 20% 3766 | -5/Extension | Lost 4 parts (2n2u) 3922 | -5/Extension | Energy Cycler disabled 3922 | -5/Extension | Rescued a captive Derelict 3922 | -5/Extension | Rescued a captive Derelict 3922 | -5/Extension | Rescued a captive Derelict 3923 | -5/Extension | Rescued A7 3927 | -5/Extension | Rescued a captive Derelict 3929 | -5/Extension | Rescued a captive Derelict 3932 | -5/Extension | Rescued a captive Derelict 3940 | -5/Extension | Rescued a captive Derelict 4069 | -5/Extension | Spotted B-75 Beast 4114 | -5/Extension | Spotted B-75 Beast 4141 | -5/Extension | Destroyed B-75 Beast 4144 | -5/Extension | Discovered new exit (range 14) 4276 | -5/Extension | Build established: Scavenger-Mutant 4609 | -5/Extension | Discovered new exit (range 10) 4612 | -5/Extension | Discovered new exit (range 6) 4659 | -5/Extension | Entered Cetus 4659 | -5/Cetus | Accompanied by 9 allies (A7) 4664 | -5/Cetus | Acquired a Cetus Manufacturing Module code from A7 4678 | -5/Cetus | Spotted Cetus Guard 4678 | -5/Cetus | Spotted Cetus Guard 4681 | -5/Cetus | Spotted Cetus Guard 4687 | -5/Cetus | Allies destroyed Cetus Guard 4694 | -5/Cetus | Allies destroyed Cetus Guard 4696 | -5/Cetus | Destroyed Cetus Guard 4696 | -5/Cetus | Spotted Cetus Guard 4707 | -5/Cetus | Allies destroyed Cetus Guard 4783 | -5/Cetus | Started Cetus Manufacturing Module 4808 | -5/Cetus | Manufactured an Enhanced Grunt 4833 | -5/Cetus | Manufactured an Enhanced Grunt 4858 | -5/Cetus | Manufactured an Enhanced Grunt 4883 | -5/Cetus | Manufactured an Enhanced Grunt 4908 | -5/Cetus | Manufactured an Enhanced Grunt 4974 | -5/Cetus | Discovered new exit (range 15) 5015 | -5/Cetus | Spotted Cetus Guard 5016 | -5/Cetus | Spotted Cetus Guard 5017 | -5/Cetus | Destroyed by Cetus Guard with Advanced KE Penetrator Last Messages --------------- >>\\A947 Initiating process...Project G-00 loaded. 04793_ DDYS#SO=A5KJP8TDUOJD4&8I 04798_ Connecting with Cetus Terminal... >>Open(Door) Sealed Heavy Doors opened. 04817_